Cogmind - Beta 14 @@@ ROGUE MODE // 2025.03.08 @ 09:13:24 Player: LightKnight Result: Destroyed by P-80 Master with Gamma Rifle Performance ------------- Evolutions (7) 3500 Regions Visited (14) 2800 Robots Destroyed (33) 165 Value Destroyed (986) 986 Prototype IDs (38) 760 Alien Tech Used (1) 200 Bonus (214) 214 TOTAL SCORE: 8625 Bonus ------- High Alert Combat Kills 64 Follower Combat Kills 400 Registered with UFD 300 Met Zhirov 300 Friendly Fire -850 Cogmind --------- Core Integrity 0/1300 Matter 206/300 Energy 99/100 System Corruption 5% Temperature Cool (0) Movement Core (50) Location -3/Research Parts ------- > --- POWER (2) -------- (None) > --- PROPULSION (6) --- (None) > --- UTILITY (10) ----- Experimental Optical Array Experimental Terrain Scan Processor > --- WEAPON (3) ------- (None) > --- INVENTORY (5) ---- Makeshift Transmission Jammer Makeshift ECM Suite Transdimensional Reconstructor Improved Plasma Cutter Vibroblade Peak State ------------ > --- POWER ------------ Neutrino Core Meta Core > --- PROPULSION ------- Carbon-fiber Leg Carbon-fiber Leg Carbon-fiber Leg Improved Titanium Leg Enhanced Flexi-carbon Leg > --- UTILITY ---------- Advanced Heat Sink Improved Coolant Injector Small Storage Unit Enhanced Optical Array Makeshift Salvage Targeting Computer Layered Heavy Armor Plating A0-MCA's Component Scanner > --- WEAPON ----------- High-powered Shock Rifle Long-range Proton Cannon KE Penetrator > --- INVENTORY -------- Light Angular Momentum Engine Micro Fission Core Carbon-fiber Leg Advanced Heat Sink Makeshift Transmission Jammer Long-range Proton Cannon CPS Tube DRS Beacon [Rating: 101] Favorites ----------- Power Meta Core Engine Ion Engine Power Core Meta Core Reactor Fusion Reactor Propulsion Improved Carbon-fiber Leg Treads Light Treads Leg Improved Carbon-fiber Leg Hover Unit Linear Gravjet Flight Unit Impulse Thruster Utility Small Storage Unit Device Advanced Heat Sink Storage Small Storage Unit Processor Enhanced Optical Array Hackware Improved System Shield Protection Scrap Shield Weapon Battle Cannon Energy Gun Arc Projector Energy Cannon Long-range Proton Cannon Ballistic Gun Subdweller Machine Gun Ballistic Cannon Battle Cannon Launcher Subdweller Shrapnel Launcher Special Weapon CPS Tube Impact Weapon Makeshift Hammer Slashing Weapon Ripper Build | -11 -10 -10 -10 -7 -7 -5 -5 -5 -5 -4 -4 -4 -4 -3 ------- Run | Yrd Mat Min Sub Rec Scr Fac Upp Upp Zhi Pro Fac Upp Upp Res Slots Evolved 14 | . . . . . . 10 . . . . 2 . . 2 Power 1 | . . . . . . 1 . . . . . . . . Propulsion 4 | . . . . . . 3 . . . . . . . 1 Utility 8 | . . . . . . 5 . . . . 2 . . 1 Weapon 1 | . . . . . . 1 . . . . . . . . Parts Attached 100 | . 1 1 23 4 4 38 8 1 6 . 2 . . 12 Power 9 | . . . 2 . . 5 1 . 1 . . . . . Engine 4 | . . . 1 . . 3 . . . . . . . . Core 4 | . . . 1 . . 2 1 . . . . . . . Reactor 1 | . . . . . . . . . 1 . . . . . Propulsion 28 | . . . 2 2 . 18 1 . . . 1 . . 4 Treads 3 | . . . 2 . . . 1 . . . . . . . Leg 15 | . . . . 2 . 13 . . . . . . . . Wheel . | . . . . . . . . . . . . . . . Hover 5 | . . . . . . 5 . . . . . . . . Flight 5 | . . . . . . . . . . . 1 . . 4 Utility 34 | . 1 . 5 1 1 10 4 . 5 . 1 . . 6 Device 16 | . . . 3 . 1 5 1 . 2 . . . . 4 Storage 2 | . 1 . 1 . . . . . . . . . . . Processor 6 | . . . . . . 4 . . . . 1 . . 1 Hackware 3 | . . . . . . . . . 2 . . . . 1 Protection 7 | . . . 1 1 . 1 3 . 1 . . . . . Artifact . | . . . . . . . . . . . . . . . Weapon 29 | . . 1 14 1 3 5 2 1 . . . . . 2 Energy Gun 7 | . . . 3 1 1 2 . . . . . . . . Energy Cannon 2 | . . . . . . 1 1 . . . . . . . Ballistic Gun 6 | . . . 4 . 1 1 . . . . . . . . Ballistic Cannon 1 | . . . 1 . . . . . . . . . . . Launcher 5 | . . . 4 . . . . . . . . . . 1 Special Weapon 2 | . . . . . . 1 1 . . . . . . . Impact Weapon 1 | . . . . . 1 . . . . . . . . . Slashing Weapon 5 | . . 1 2 . . . . 1 . . . . . 1 Piercing Weapon . | . . . . . . . . . . . . . . . Special Melee Weapon . | . . . . . . . . . . . . . . . Unidentified Prototypes 7 | . . . . . . . 1 . 5 . 1 . . . Parts Lost 27 | . . . 3 . . 12 . . . . 3 . . 9 Power 2 | . . . . . . 2 . . . . . . . . Propulsion 11 | . . . . . . 6 . . . . 1 . . 4 Utility 6 | . . . . . . . . . . . 1 . . 5 Weapon 8 | . . . 3 . . 4 . . . . 1 . . . Highest Loss Streak 8 | . . . 2 . . 6 . . . . 2 . . 8 To Critical Strikes 2 | . . . 2 . . . . . . . . . . . Average Slot Usage (%) 66 | . 98 100 87 68 75 78 24 16 11 17 18 10 10 28 Engine 1 | . 14 14 2 . . 1 . . . . . . . . Core 7 | . . . 7 10 10 7 4 2 . . . . . . Treads 4 | . . . 20 3 . . 4 2 . . . . . . Leg 11 | . 28 28 1 15 20 19 . . . . . . . . Device 5 | . . . 11 . 3 12 4 2 . . . . . 9 Storage 7 | . 26 28 10 10 10 4 . . . . . . . . Processor 2 | . . . . . . 16 . . . . 3 5 5 7 Protection 3 | . . . 3 7 4 1 4 2 . . . . . . Energy Gun 6 | . 14 14 7 2 11 4 . . . . . . . . Ballistic Gun 3 | . 14 13 9 . 1 2 . . . . . . . . Ballistic Cannon 5 | . . . 7 10 10 . . . . . . . . . Launcher 3 | . . . 3 10 4 . . . . . . . . . Peak Build Rating 101 | . 7 8 29 36 48 101 34 30 26 18 33 16 16 69 Average Rating 35 | . 6 7 23 29 37 81 25 17 13 18 24 16 16 42 On Entrance 16 | 6 6 7 8 21 36 48 2 30 6 18 18 16 16 16 Naked Turns 103 | . . . . . . 74 17 12 . . . . . . Heaviest Build 66 | 13 15 16 44 44 44 66 21 21 3 3 3 . . 14 Greatest Support 101 | 20 20 20 40 40 36 101 23 23 3 3 7 3 3 14 Greatest Overweight (x) 12 | . . . 1 1 1 12 . . . . . . . 2 Average Overweight (x) . | . . . . . . . . . . . . . . . Largest Inventory Capacity 8 | . 8 8 8 8 8 8 5 5 5 5 5 5 5 5 Average Capacity 7 | . 8 8 7 8 8 7 5 5 5 5 5 5 5 5 Most Carried 8 | . 7 8 8 8 8 8 5 5 5 5 5 5 5 5 Average Carried 5 | . 6 7 7 7 5 6 3 4 4 5 3 4 5 4 Final Capacity 8 | 8 8 8 8 8 8 5 5 5 5 5 5 5 5 5 Final Carried 8 | 6 7 8 8 8 8 5 5 5 5 5 4 5 5 5 Class Distribution -------------------- 39% | Mutant 18% | Tank 12% | Gunner 8% | Scavenger-Mutant 7% | Subdweller-Tank 5% | Scavenger-Skirmisher Dominant Class ---------------- Mutant | -10/Materials Mutant | -10/Mines Subdweller-Tank | -10/Subcaves Mutant | -7/Recycling Tank | -7/Scraptown Scavenger-Mutant | -5/Factory Mutant | -5/Upper Caves Mutant | -5/Upper Caves Hacker-Mutant | -5/Zhirov Hacker-Mutant | -4/Proximity Caves Hacker-Mutant | -4/Factory Mutant | -4/Upper Caves Mutant | -4/Upper Caves Mutant | -3/Research Resources | -11 -10 -10 -10 -7 -7 -5 -5 -5 -5 -4 -4 -4 -4 -3 ----------- Run | Yrd Mat Min Sub Rec Scr Fac Upp Upp Zhi Pro Fac Upp Upp Res Matter Collected 2279 | 176 48 1 348 145 600 697 153 20 86 . . 5 . . Remotely . | . . . . . . . . . . . . . . . Salvage Created 1857 | . 88 . 100 . 330 869 . . 415 . . . . 55 Parts 82 | . 8 . 13 . 2 48 . . 7 . . . . 4 Haulers Intercepted 1 | . 1 . . . . . . . . . . . . . Recyclers Shooed 1 | . . . . . . 1 . . . . . . . . Parts Field Recycled . | . . . . . . . . . . . . . . . Retrieved Matter . | . . . . . . . . . . . . . . . Parts Self-Destructed 32 | . . . 24 . . . 4 . 4 . . . . . Prevented 2 | . . . . . 2 . . . . . . . . . Kills | -11 -10 -10 -10 -7 -7 -5 -5 -5 -5 -4 -4 -4 -4 -3 ------- Run | Yrd Mat Min Sub Rec Scr Fac Upp Upp Zhi Pro Fac Upp Upp Res Combat Hostiles Destroyed 25 | . 3 . 9 . . 10 . . . . . . . 3 Guns 16 | . 3 . 7 . . 6 . . . . . . . . Cannons 2 | . . . . . . 2 . . . . . . . . AOE 5 | . . . 2 . . . . . . . . . . 3 Classes Destroyed 8 | . 2 . 1 . . 5 . . . . . . . . Worker 4 | . . . . . . 4 . . . . . . . . Hauler 1 | . 1 . . . . . . . . . . . . . Swarmer 13 | . 3 . 5 . . 2 . . . . . . . 3 Grunt 4 | . . . . . . 4 . . . . . . . . Sentry 2 | . . . . . . 2 . . . . . . . . Hunter 2 | . . . . . . 2 . . . . . . . . Subdweller 4 | . . . 4 . . . . . . . . . . . Scrapoid 3 | . . . . . . 3 . . . . . . . . Best Kill Streak 4 | . 2 . 2 . . 4 . . . . . . . 3 Combat Bots Only 3 | . 2 . 2 . . 2 . . . . . . . 3 Max Kills in Single Turn 7 | . 1 . 2 . . 7 . . . . . . . 3 Gunslinging . | . . . . . . . . . . . . . . . Exploded 3 | . . . 2 . . . . . . . . . . 3 Melee . | . . . . . . . . . . . . . . . Uniques/NPCs Destroyed . | . . . . . . . . . . . . . . . Combat | -11 -10 -10 -10 -7 -7 -5 -5 -5 -5 -4 -4 -4 -4 -3 -------- Run | Yrd Mat Min Sub Rec Scr Fac Upp Upp Zhi Pro Fac Upp Upp Res Hostile Shots Fired 609 | . 16 1 153 . . 180 . 11 . . 61 22 . 165 Missed 243 | . 2 . 57 . . 58 . 4 . . 32 15 . 75 Damage Taken 6520 | . 107 17 969 . . 2743 . 155 . . 437 135 . 1957 Core 2902 | . 17 17 142 . . 824 . 136 . . 321 135 . 1310 Absorbed by Shields 34 | . . . . . . . . . . . 34 . . . Core Remaining (%) 48 | 100 . . . . 29 . . . . 4 . . 60 . Volleys Fired 102 | . 14 1 31 . . 55 . . . . . . . 1 Largest 3 | . 2 2 3 . . 3 . . . . . . . 1 Hottest 174 | . 70 70 139 . . 174 . . . . . . . 52 Shots Fired 191 | . 28 2 67 . . 93 . . . . . . . 1 Gun 146 | . 28 2 49 . . 67 . . . . . . . . Cannon 37 | . . . 11 . . 26 . . . . . . . . Launcher 8 | . . . 7 . . . . . . . . . . 1 Special . | . . . . . . . . . . . . . . . Kinetic 78 | . 14 1 32 . . 31 . . . . . . . . Thermal 74 | . 14 1 31 . . 28 . . . . . . . . Explosive 1 | . . . . . . . . . . . . . . 1 Electromagnetic 38 | . . . 4 . . 34 . . . . . . . . Robot Hit Streak 9 | . 6 8 7 . . 9 . . . . . . . . Robot Miss Streak 5 | . 4 . 5 . . 4 . . . . . . . 1 Penetration Max 1 | . . . . . . 1 . . . . . . . . Secondary Targets . | . . . . . . . . . . . . . . . Shots Hit Robots 131 | . 16 2 33 . 9 59 . . 12 . . . . . Core Hits 54 | . 6 . 14 . . 26 . . 4 . . . . 4 Critical Kills 1 | . . . . . . 1 . . . . . . . . Critical Parts Destroyed 1 | . . . . . . 1 . . . . . . . . Critical Strikes 4 | . 1 . . . . 3 . . . . . . . . Burn 1 | . 1 . . . . . . . . . . . . . Destroy 2 | . . . . . . 2 . . . . . . . . Blast 1 | . . . . . . 1 . . . . . . . . Melee Attacks 43 | . . 1 2 . 9 . . 2 12 . . . . 17 Impact 9 | . . . . . 9 . . . . . . . . . Slashing 34 | . . 1 2 . . . . 2 12 . . . . 17 Piercing . | . . . . . . . . . . . . . . . Sneak Attacks . | . . . . . . . . . . . . . . . Combat Hostiles . | . . . . . . . . . . . . . . . Follow-up Attacks . | . . . . . . . . . . . . . . . Damage Inflicted 5713 | . 175 23 940 . 715 2518 . . 966 . . . . 376 Guns 1691 | . 175 23 446 . . 1047 . . . . . . . . Cannons 662 | . . . 90 . . 572 . . . . . . . . Explosions 1642 | . . . 404 . . 862 . . . . . . . 376 Melee 1681 | . . . . . 715 . . . 966 . . . . . Ramming 37 | . . . . . . 37 . . . . . . . . Kinetic 1293 | . 62 10 669 . . 552 . . . . . . . . Thermal 1621 | . 113 13 247 . . 1248 . . . . . . . . Explosive 376 | . . . . . . . . . . . . . . 376 Electromagnetic 705 | . . . 24 . . 681 . . . . . . . . Impact 715 | . . . . . 715 . . . . . . . . . Slashing 966 | . . . . . . . . . 966 . . . . . Piercing . | . . . . . . . . . . . . . . . Highest Corruption 6 | . . . . . . 6 6 6 6 6 . . . 4 Average Corruption 5 | . . . . . . 3 6 6 6 6 . . . 1 Corruption Purged . | . . . . . . . . . . . . . . . Corruption Blocked . | . . . . . . . . . . . . . . . Effects 72 | . . . . . . 23 34 7 3 3 . . . 2 Message Errors 18 | . . . . . . 3 11 3 . . . . . 1 Matter Fused 12 | . . . . . . 2 8 1 1 . . . . . Heat Flow Errors 10 | . . . . . . 4 4 . 1 1 . . . . Energy Discharges 6 | . . . . . . 4 . 1 . 1 . . . . Parts Rejected 1 | . . . . . . 1 . . . . . . . . Parts Fused 1 | . . . . . . . 1 . . . . . . . Data Loss (minor) 10 | . . . . . . 1 7 . 1 1 . . . . Data Loss (major) 6 | . . . . . . 2 3 1 . . . . . . Misfires 6 | . . . . . . 6 . . . . . . . . Alerts 2 | . . . . . . . . 1 . . . . . 1 Overload Shots . | . . . . . . . . . . . . . . . Overflow Damage 787 | . . . . . 396 192 . . 199 . . . . . Projectiles 18 | . . . . . 7 11 . . . . . . . . Explosions 181 | . . . . . . 181 . . . . . . . . Melee 588 | . . . . . 389 . . . 199 . . . . . Knockbacks 16 | . . . 4 . 7 5 . . . . . . . . Impact 7 | . . . . . 6 1 . . . . . . . . Kinetic 7 | . . . 4 . . 3 . . . . . . . . Secondary 2 | . . . . . 1 1 . . . . . . . . Self-Inflicted Damage 300 | . . . 48 . . 209 . . . . . . . 43 Shots 4 | . . . 1 . . 2 . . . . . . . 1 Rammed 2 | . . . . . . 2 . . . . . . . . Targets Rammed 3 | . . . . . . 3 . . . . . . . . Kicked 1 | . . . . . . 1 . . . . . . . . Crushed . | . . . . . . . . . . . . . . . Highest Temperature 395 | . 160 30 108 . . 395 221 . 229 131 . . . . Average Temperature 111 | . 80 16 35 . . 157 97 . 129 71 . . . . Received Heat Transfer 943 | . . 9 471 . . 352 . 36 . . 27 . . 48 Effects 5 | . . . . . . 5 . . . . . . . . Shutdowns 1 | . . . . . . 1 . . . . . . . . Interference 2 | . . . . . . 2 . . . . . . . . Matter Decay 1 | . . . . . . 1 . . . . . . . . Damage (minor) 1 | . . . . . . 1 . . . . . . . . Siege Activations . | . . . . . . . . . . . . . . . Robots Corrupted 7 | . . . . . 5 2 . . . . . . . . Combat Hostiles 2 | . . . . . . 2 . . . . . . . . Parts Fried 7 | . . . . . 4 3 . . . . . . . . Impact Corruptions 15 | . . . . . 15 . . . . . . . . . Robots Melted . | . . . . . . . . . . . . . . . Combat Hostiles . | . . . . . . . . . . . . . . . Parts Melted 7 | . . . 2 . . 5 . . . . . . . . Heat Transferred 2127 | . 407 37 495 . . 1188 . . . . . . . . Parts Sabotaged . | . . . . . . . . . . . . . . . Parts Stolen . | . . . . . . . . . . . . . . . Parts Stripped . | . . . . . . . . . . . . . . . Power Chain Reactions . | . . . . . . . . . . . . . . . Alert | -11 -10 -10 -10 -7 -7 -5 -5 -5 -5 -4 -4 -4 -4 -3 ------- Run | Yrd Mat Min Sub Rec Scr Fac Upp Upp Zhi Pro Fac Upp Upp Res Peak Influence 700 | . 127 102 . 106 . 700 . . . . 150 . . 332 Initial 108 | . . 49 . 72 . . . . . . . . . 108 Average 158 | . 79 81 . 47 . 261 . . . . 37 . . 157 Maximum Alert Level 3 | . . . . . . 3 . . . . . . . 1 Low Security (%) 72 | . 100 100 . 100 . 46 . . . . 100 . . 68 Level 1 19 | . . . . . . 33 . . . . . . . 31 Level 2 8 | . . . . . . 20 . . . . . . . . Level 3 . | . . . . . . . . . . . . . . . Level 4 . | . . . . . . . . . . . . . . . Level 5 . | . . . . . . . . . . . . . . . High Security . | . . . . . . . . . . . . . . . Max Security . | . . . . . . . . . . . . . . . Squads Dispatched 13 | . . . . . . 9 . . . . 1 . . 3 Investigation . | . . . . . . . . . . . . . . . Extermination 3 | . . . . . . 2 . . . . . . . 1 Reinforcement 8 | . . . . . . 5 . . . . 1 . . 2 Assault . | . . . . . . . . . . . . . . . Garrison 2 | . . . . . . 2 . . . . . . . . Intercept . | . . . . . . . . . . . . . . . Searches Triggered . | . . . . . . . . . . . . . . . Construction Impeded 3 | . . . . . . 2 . . . . . . . 1 Haulers Reinforced . | . . . . . . . . . . . . . . . Active Scanning Responses . | . . . . . . . . . . . . . . . Cargo Convoy Interrupts . | . . . . . . . . . . . . . . . Stealth | -11 -10 -10 -10 -7 -7 -5 -5 -5 -5 -4 -4 -4 -4 -3 --------- Run | Yrd Mat Min Sub Rec Scr Fac Upp Upp Zhi Pro Fac Upp Upp Res Distress Signals 4 | . . . . . . 1 . . . . . . . 3 Communications Jammed 5 | . . . . . . . . . . . . . . 5 Distress Signals 5 | . . . . . . . . . . . . . . 5 Times Spotted 123 | . 4 2 20 . . 34 1 1 . . 17 8 . 36 Peak Tracking Total 14 | . 3 1 4 . . 9 1 1 . . 11 3 . 14 Tactical Retreats 23 | . 1 . 3 . . 4 . 1 . . 3 3 . 8 Traps | -11 -10 -10 -10 -7 -7 -5 -5 -5 -5 -4 -4 -4 -4 -3 ------- Run | Yrd Mat Min Sub Rec Scr Fac Upp Upp Zhi Pro Fac Upp Upp Res Traps Triggered 3 | . . . . . . . . . . . 2 . . 1 Indirectly . | . . . . . . . . . . . . . . . Trap Hack Attempts . | . . . . . . . . . . . . . . . Triggered . | . . . . . . . . . . . . . . . Disarmed . | . . . . . . . . . . . . . . . Reprogrammed . | . . . . . . . . . . . . . . . Reused . | . . . . . . . . . . . . . . . Traps Extracted . | . . . . . . . . . . . . . . . Installed . | . . . . . . . . . . . . . . . Triggered . | . . . . . . . . . . . . . . . Machines | -11 -10 -10 -10 -7 -7 -5 -5 -5 -5 -4 -4 -4 -4 -3 ---------- Run | Yrd Mat Min Sub Rec Scr Fac Upp Upp Zhi Pro Fac Upp Upp Res Machines Disabled 11 | . . . 3 . . 8 . . . . . . . . Max in Single Turn 5 | . . . 2 . . 5 . . . . . . . . Garrison Access 1 | . . . . . . . . . . . . . . 1 Machines Repaired . | . . . . . . . . . . . . . . . Machines Dismantled . | . . . . . . . . . . . . . . . Machines Sabotaged . | . . . . . . . . . . . . . . . Overloaded Fab Kills . | . . . . . . . . . . . . . . . Hacking | -11 -10 -10 -10 -7 -7 -5 -5 -5 -5 -4 -4 -4 -4 -3 --------- Run | Yrd Mat Min Sub Rec Scr Fac Upp Upp Zhi Pro Fac Upp Upp Res Machines Accessed 28 | . 1 . 2 4 5 4 . . 4 . 1 . . 7 Terminals 12 | . 1 . . 4 . 3 . . . . 1 . . 3 Fabricators 1 | . . . . . . . . . . . . . . 1 Repair Stations . | . . . . . . . . . . . . . . . Recycling Units . | . . . . . . . . . . . . . . . Scanalyzers . | . . . . . . . . . . . . . . . Garrison Access 4 | . . . . . . 1 . . . . . . . 3 Total Hacks 77 | . 2 . 7 11 22 6 . . 17 . 2 . . 10 Successful 53 | . 1 . 7 4 22 1 . . 17 . . . . 1 Failed 24 | . 1 . . 7 . 5 . . . . 2 . . 9 Catastrophic 11 | . . . . 3 . 2 . . . . 1 . . 5 Database Lockouts . | . . . . . . . . . . . . . . . Manual 10 | . . . . 2 . 4 . . . . . . . 4 Terminals 24 | . 2 . . 11 . 4 . . . . 2 . . 5 Fabricators 1 | . . . . . . . . . . . . . . 1 Repair Stations . | . . . . . . . . . . . . . . . Recycling Units . | . . . . . . . . . . . . . . . Scanalyzers . | . . . . . . . . . . . . . . . Garrison Access 6 | . . . . . . 2 . . . . . . . 4 Terminal Hacks 52 | . 1 . 7 4 22 1 . . 17 . . . . . Record 26 | . . . 6 . 15 . . . 5 . . . . . Part Schematic 5 | . . . . 1 . . . . 4 . . . . . Robot Analysis 12 | . . . . 2 6 . . . 4 . . . . . Prototype ID Bank 5 | . . . . 1 . . . . 4 . . . . . Branch Access Points 1 | . . . . . . 1 . . . . . . . . Terminal Index 1 | . 1 . . . . . . . . . . . . . Derelict Proto ID Bank 2 | . . . 1 . 1 . . . . . . . . . Fabricator Hacks . | . . . . . . . . . . . . . . . Repair Station Hacks . | . . . . . . . . . . . . . . . Recycling Unit Hacks . | . . . . . . . . . . . . . . . Scanalyzer . | . . . . . . . . . . . . . . . Garrison Access Hacks 1 | . . . . . . . . . . . . . . 1 Seal Access 1 | . . . . . . . . . . . . . . 1 Unauthorized Hacks . | . . . . . . . . . . . . . . . Terminals . | . . . . . . . . . . . . . . . Fabricators . | . . . . . . . . . . . . . . . Repair Stations . | . . . . . . . . . . . . . . . Recycling Units . | . . . . . . . . . . . . . . . Scanalyzers . | . . . . . . . . . . . . . . . Garrison Access . | . . . . . . . . . . . . . . . Data Cores Recovered . | . . . . . . . . . . . . . . . Used . | . . . . . . . . . . . . . . . Hacking Detections 15 | . 1 . . 4 . 3 . . . . 1 . . 6 Full Trace Events . | . . . . . . . . . . . . . . . Feedback Events . | . . . . . . . . . . . . . . . Feedback Blocked . | . . . . . . . . . . . . . . . Robot Schematics Acquired . | . . . . . . . . . . . . . . . Robots Built . | . . . . . . . . . . . . . . . Authchips . | . . . . . . . . . . . . . . . Time . | . . . . . . . . . . . . . . . Total Robot Build Rating . | . . . . . . . . . . . . . . . Part Schematics Acquired 5 | . . . . 1 . . . . 4 . . . . . Parts Built . | . . . . . . . . . . . . . . . Authchips . | . . . . . . . . . . . . . . . Time . | . . . . . . . . . . . . . . . Total Part Build Rating . | . . . . . . . . . . . . . . . Parts Repaired . | . . . . . . . . . . . . . . . Time . | . . . . . . . . . . . . . . . Parts Recycled . | . . . . . . . . . . . . . . . Recycled Matter . | . . . . . . . . . . . . . . . Retrieved Matter . | . . . . . . . . . . . . . . . Retrieved Components . | . . . . . . . . . . . . . . . Parts Scanalyzed . | . . . . . . . . . . . . . . . Part Schematics Acquired . | . . . . . . . . . . . . . . . Parts Damaged . | . . . . . . . . . . . . . . . Bothacking | -11 -10 -10 -10 -7 -7 -5 -5 -5 -5 -4 -4 -4 -4 -3 ------------ Run | Yrd Mat Min Sub Rec Scr Fac Upp Upp Zhi Pro Fac Upp Upp Res Used RIF Installer . | . . . . . . . . . . . . . . . Robots Hacked . | . . . . . . . . . . . . . . . Non-combat . | . . . . . . . . . . . . . . . Combat . | . . . . . . . . . . . . . . . Robot Hacks Applied . | . . . . . . . . . . . . . . . Relay Couplers Released . | . . . . . . . . . . . . . . . Fabnet Peak Effective % . | . . . . . . . . . . . . . . . Robots Rewired . | . . . . . . . . . . . . . . . Allies Hacked . | . . . . . . . . . . . . . . . Hacks Repelled . | . . . . . . . . . . . . . . . Allies | -11 -10 -10 -10 -7 -7 -5 -5 -5 -5 -4 -4 -4 -4 -3 -------- Run | Yrd Mat Min Sub Rec Scr Fac Upp Upp Zhi Pro Fac Upp Upp Res Total Allies 8 | . . 1 . . 2 5 . . . . . . . . Largest Group 5 | . . 1 1 . 1 5 . . . . . . . . Highest-Rated Group 238 | . . 31 31 . 34 238 . . . . . . . . Highest-Rated Ally 50 | . . 31 31 . 34 50 . . . . . . . . Total Orders 4 | . . . . . . . . . . . . . . 4 EXPLORE 3 | . . . . . . . . . . . . . . 3 RETURN 1 | . . . . . . . . . . . . . . 1 Ally Attacks 90 | . . 8 3 . . 79 . . . . . . . . Total Damage 1568 | . . 106 42 . . 1420 . . . . . . . . Kills 15 | . . 2 . . . 13 . . . . . . . . Allies Corrupted . | . . . . . . . . . . . . . . . Allies Melted . | . . . . . . . . . . . . . . . Intel | -11 -10 -10 -10 -7 -7 -5 -5 -5 -5 -4 -4 -4 -4 -3 ------- Run | Yrd Mat Min Sub Rec Scr Fac Upp Upp Zhi Pro Fac Upp Upp Res Robot Analysis Total 12 | . . . . 2 6 . . . 4 . . . . . Derelict Logs Recovered 7 | . . 1 1 . 4 . . . . . . 1 . . Drone Launches 3 | . . . . . . . . . . . . . . 3 Drone Recoveries 1 | . . . . . . . . . . . . . . 1 Exploration | -11 -10 -10 -10 -7 -7 -5 -5 -5 -5 -4 -4 -4 -4 -3 ------------- Run | Yrd Mat Min Sub Rec Scr Fac Upp Upp Zhi Pro Fac Upp Upp Res Turns Passed 11365 | . 134 237 2209 640 4451 1161 1093 193 132 117 164 234 67 533 Spaces Moved 9223 | 1 75 141 1294 347 3015 866 887 246 178 233 285 465 134 1056 Core 2216 | . . . . . . 146 321 191 178 233 156 465 134 392 Treads 1950 | . . . 1251 78 . . 566 55 . . . . . . Legs 4209 | 1 75 141 43 269 3015 665 . . . . . . . . Wheels . | . . . . . . . . . . . . . . . Hover 55 | . . . . . . 55 . . . . . . . . Flight 793 | . . . . . . . . . . . 129 . . 664 Fastest Speed 24 | 120 120 120 120 120 120 24 50 50 50 50 40 50 50 37 Average Speed 114 | 120 120 120 158 181 144 105 120 74 50 50 45 50 50 42 Slowest Speed 650 | 120 120 120 240 190 190 650 160 160 50 50 50 50 50 150 Overloaded Moves . | . . . . . . . . . . . . . . . Propulsion Burnouts . | . . . . . . . . . . . . . . . Robots Hopped 11 | . . . . . . . . . . . . . . 11 Cave-ins Triggered . | . . . . . . . . . . . . . . . Exploration Rate (%) 44 | 2 17 24 64 71 93 23 90 49 60 48 10 56 21 38 Regions Visited 14 Branch Regions 10 Pre-discovered Areas 5 | . . . . . 1 . . . 3 . . 1 . . Known Exits Taken 4 | . . 1 1 . . 1 . . . 1 . . . . Unknown Exits Taken 10 | 1 1 . . 1 1 . 1 1 1 . 1 1 1 . Scrap Searched 15 | . . . 4 . 5 . 2 2 . 1 . 1 . . Spaces Dug 19 | . . . . . . . . 2 . . . . . 17 Terrain Destroyed 153 | . . . 58 . . 60 . 2 . . . . . 33 Melee 19 | . . . . . . . . 2 . . . . . 17 Projectile 2 | . . . . . . 2 . . . . . . . . AOE 132 | . . . 58 . . 58 . . . . . . . 16 Terrain Rammed . | . . . . . . . . . . . . . . . Walls Destroyed . | . . . . . . . . . . . . . . . Machines Disabled . | . . . . . . . . . . . . . . . Actions | -11 -10 -10 -10 -7 -7 -5 -5 -5 -5 -4 -4 -4 -4 -3 --------- Run | Yrd Mat Min Sub Rec Scr Fac Upp Upp Zhi Pro Fac Upp Upp Res Total 9795 | . 94 207 1390 356 3108 1023 914 253 202 232 318 465 133 1100 Wait 170 | . . 53 4 . 47 35 11 . . . . . . 20 Move 9188 | . 74 140 1293 346 3014 865 886 245 177 232 284 464 133 1035 Hop 10 | . . . . . . . . . . . . . . 10 Pick Up 55 | . 3 6 15 3 15 6 3 . 1 . 1 1 . 1 Fast Attach 57 | . 1 . 5 3 2 21 5 1 6 . 2 . . 11 Attach 25 | . . . 5 1 2 12 3 . 1 . . . . 1 Detach 18 | . . . 2 . 3 7 2 2 1 . . . . 1 Swap 19 | . . 1 13 . . 5 . . . . . . . . Drop 74 | . 2 5 20 3 16 14 3 3 4 . 1 . . 3 Fire 102 | . 14 1 31 . . 55 . . . . . . . 1 Melee 43 | . . 1 2 . 9 . . 2 12 . . . . 17 Ram 2 | . . . . . . 2 . . . . . . . . Kick 1 | . . . . . . 1 . . . . . . . . Crush . | . . . . . . . . . . . . . . . Escape Stasis 30 | . . . . . . . . . . . 30 . . . Rewire . | . . . . . . . . . . . . . . . Trap . | . . . . . . . . . . . . . . . Miscellaneous 1 | . . . . . . . 1 . . . . . . . Route ------- -11/Scrapyard -10/Materials -10/Mines (discovered 2 exits: [*Mat] / *Sub) -10/Subcaves (discovered 3 exits: *Mat x2 / *Rec) -7/Recycling -7/Scraptown (discovered 2 exits: *Fac x2) -5/Factory (discovered 6 exits: *Fac x2 / *Upp x2 / Ext x2) -5/Upper Caves -5/Upper Caves -5/Zhirov -4/Proximity Caves -4/Factory -4/Upper Caves -4/Upper Caves -3/Research History --------- Turn | Location | Event 1 | -11/Scrapyard | Discovered new exit (range 0) 1 | -11/Scrapyard | Entered Materials 121 | -10/Materials | Discovered new exit (range 8) 135 | -10/Materials | Entered Mines 155 | -10/Mines | Received a Mining Laser from a helpful Derelict 210 | -10/Mines | Identified exit to Subcaves 241 | -10/Mines | Discovered new exit (range 6) 301 | -10/Mines | Build established: Mutant 372 | -10/Mines | Entered Subcaves 372 | -10/Subcaves | Accompanied by 1 ally 420 | -10/Subcaves | Disturbed a concealed Subdweller 586 | -10/Subcaves | Shifting Twisted Machinery released Battle Cannon 740 | -10/Subcaves | Build established: Scavenger-Mutant 819 | -10/Subcaves | Visited 4L-MR0's lab 834 | -10/Subcaves | Found Meta Core 836 | -10/Subcaves | Attached Meta Core, gained temporary slots: Propulsion, Utility, Weapon 1290 | -10/Subcaves | Build established: Scavenger-Skirmisher 1451 | -10/Subcaves | Shifting Twisted Machinery released Sub. Optics 1574 | -10/Subcaves | Discovered new exit (range 13) 1647 | -10/Subcaves | A swath of the cavern ceiling suddenly collapsed 1654 | -10/Subcaves | Visited Clippyterm 1659 | -10/Subcaves | Identified exit to Materials 1659 | -10/Subcaves | Identified exit to Recycling 1659 | -10/Subcaves | Learned Factory trap positions 1674 | -10/Subcaves | Core integrity fell below 50% 1799 | -10/Subcaves | Learned Materials trap positions 1990 | -10/Subcaves | Shifting Twisted Machinery released Mak. Hammer 1991 | -10/Subcaves | Shifting Twisted Machinery released Sub. Monowheel 2043 | -10/Subcaves | Build established: Subdweller-Tank 2449 | -10/Subcaves | A swath of the cavern ceiling suddenly collapsed 2581 | -10/Subcaves | Entered Recycling 2846 | -7/Recycling | Build established: Mutant 3177 | -7/Recycling | Scanned before Scraplab entrance 3203 | -7/Recycling | Entered Scraplab 3219 | -7/Recycling | Discovered new exit (range 2) 3221 | -7/Recycling | Entered Scraptown 3390 | -7/Scraptown | Build established: Tank 3535 | -7/Scraptown | Visited Red Mages 3592 | -7/Scraptown | Visited Spacefarers 3641 | -7/Scraptown | Visited Fellowship of the Rings 4018 | -7/Scraptown | Scanned Subdweller tech in exchange for log data 4025 | -7/Scraptown | Learned location of Warlord (-4) 4037 | -7/Scraptown | Learned 8 Factory zone layouts 4038 | -7/Scraptown | Learned Research stockpile data 4109 | -7/Scraptown | Visited CPS Storage 4176 | -7/Scraptown | Discovered new exit (range 11) 4343 | -7/Scraptown | Visited TADAMA 4598 | -7/Scraptown | Visited UFD Registry 4607 | -7/Scraptown | Registered with UFD as "Zerotorch" 4632 | -7/Scraptown | Visited Cyclists 4645 | -7/Scraptown | Entered Cyclist Reading Room 4772 | -7/Scraptown | Visited Assassins FH 5031 | -7/Scraptown | Visited Botcube Research 5076 | -7/Scraptown | Visited Supply Room 5141 | -7/Scraptown | Visited Science Guys 5230 | -7/Scraptown | Delivered Scrap Shield to a Scientist 5367 | -7/Scraptown | Visited Science Testing Area 5386 | -7/Scraptown | Visited Derelict Rescue Squad 5396 | -7/Scraptown | Found DRS Beacon 5472 | -7/Scraptown | Visited A0-MCA Data Center 5479 | -7/Scraptown | Given an A- rating by A0-MCA 5484 | -7/Scraptown | Found A0-MCA's Component Scanner 5501 | -7/Scraptown | Visited Abandonware Association 5509 | -7/Scraptown | Learned abandonware demo "OVRCLOCK.EXE" 5514 | -7/Scraptown | Learned abandonware demo "HACKBUD.EXE" 5518 | -7/Scraptown | Build established: Gunner 5566 | -7/Scraptown | Visited Analyses Database 5605 | -7/Scraptown | Visited Scrapoid Pod Storage 5749 | -7/Scraptown | Discovered new exit (range 5) 6170 | -7/Scraptown | Found Botcube 6217 | -7/Scraptown | Botcube activated 6298 | -7/Scraptown | Found Scrapoid Pod 6319 | -7/Scraptown | Build established: Mutant 7177 | -7/Scraptown | Found Botcube 7263 | -7/Scraptown | Botcube activated 7269 | -7/Scraptown | Botcube completed mutation into core form, armed with 2 guns. 7327 | -7/Scraptown | Build established: Gunner 7672 | -7/Scraptown | Entered Factory 7672 | -5/Factory | Evolved 10 slots: Power x1, Propulsion x3, Utility x5, Weapon x1 7673 | -5/Factory | Identified exit to Upper Caves 7673 | -5/Factory | Identified exit to Factory 7674 | -5/Factory | Loaded intel: 106 trap records 7860 | -5/Factory | Lost 3 parts (1p2w) 8063 | -5/Factory | Scrapoid Pod released 05F05-D (x5) 8096 | -5/Factory | Lost 6 parts (1p4n1w) 8323 | -5/Factory | Identified exit to Extension 8370 | -5/Factory | Garrison activated, responded to threat 8622 | -5/Factory | Lost 3 allies 8735 | -5/Factory | Garrison activated, responded to threat 8759 | -5/Factory | Released all parts (13) 8794 | -5/Factory | Discovered exit to Factory (range 14) 8818 | -5/Factory | Core integrity fell below 50% 8833 | -5/Factory | Core integrity fell below 20% 8833 | -5/Factory | Entered Upper Caves 8835 | -5/Upper Caves | UFD Scientist delivered a prototype 8835 | -5/Upper Caves | Found Prototype Protection 8835 | -5/Upper Caves | Identified Enh. Scrap Shield 8847 | -5/Upper Caves | Activated DRS Beacon 8927 | -5/Upper Caves | Spotted B-75 Beast 8930 | -5/Upper Caves | Build established: Mutant 9006 | -5/Upper Caves | Attracted the attention of an 0b10 checkpoint 9249 | -5/Upper Caves | Discovered new exit (range 5) 9926 | -5/Upper Caves | Entered another Upper Caves area 10013 | -5/Upper Caves | Attracted the attention of an 0b10 checkpoint 10017 | -5/Upper Caves | Released all parts (3) 10105 | -5/Upper Caves | Encountered a Warlord checkpoint 10115 | -5/Upper Caves | Discovered new exit (range 9) 10119 | -5/Upper Caves | Entered Zhirov 10119 | -5/Zhirov | Discovered new exit (range 3) 10129 | -5/Zhirov | Met Zhirov 10140 | -5/Zhirov | Learned location of Quarantine (-2) 10140 | -5/Zhirov | Learned location of Testing (-3) 10140 | -5/Zhirov | Learned location of Command (-1) 10145 | -5/Zhirov | Zhirov requested help retrieving the SGEMP Prototype 10156 | -5/Zhirov | Found Alien Artifact 10156 | -5/Zhirov | Identified Integrated Reactor 10156 | -5/Zhirov | Installed Integrated Reactor, increased core energy generation (+10) 10164 | -5/Zhirov | Found Alien Artifact 10251 | -5/Zhirov | Entered Proximity Caves 10361 | -4/Proximity Caves | Discovered exit to Factory (range 14) 10368 | -4/Proximity Caves | Entered Factory 10368 | -4/Factory | Evolved 2 slots: Utility x2 10408 | -4/Factory | Found Prototype Processor 10408 | -4/Factory | Identified Exp. Terrain Scan Processor 10463 | -4/Factory | Build established: Hacker-Mutant 10530 | -4/Factory | Discovered new exit (range 4) 10532 | -4/Factory | Entered Upper Caves 10557 | -4/Upper Caves | Attracted the attention of an 0b10 checkpoint 10715 | -4/Upper Caves | Spotted B-86 Titan 10762 | -4/Upper Caves | Discovered new exit (range 8) 10766 | -4/Upper Caves | Entered another Upper Caves area 10767 | -4/Upper Caves | Build established: Mutant 10828 | -4/Upper Caves | Discovered new exit (range 11) 10833 | -4/Upper Caves | Entered Research 10833 | -3/Research | Evolved 2 slots: Propulsion x1, Utility x1 10902 | -3/Research | Spotted B-86 Titan 11036 | -3/Research | Spotted B-86 Titan 11324 | -3/Research | Core integrity fell below 50% 11342 | -3/Research | Core integrity fell below 20% 11348 | -3/Research | Found Fusion Bomb Launcher 11366 | -3/Research | Destroyed by P-80 Master with Gamma Rifle Last Messages --------------- 11303_ Slug penetrates Wall. 11317_ H|WXTCPRBVQ|LBNJCW > RMLEG6 11319_ Imp. System Shield destroyed. 11332_ Penetrated by Slug. 11335_ Graphene Brace destroyed. 11338_ Slug penetrates Wall. 11348_ Acquired Fusion Bomb Launcher. 11350_ S-43 Plague destroyed. 11350_ ALERT: Construction progress impeded, dispatching reinforcements to local area. 11352_ Dropped Fusion Bomb Launcher. 11354_ Acquired Xenon Bombardment Thruster. 11360_ Slug penetrates P-80 Master. 11360_ Xenon Bombardment Thruster destroyed. 11363_ W-44 Eye sends out distress signal. 11363_ Slug penetrates W-44 Eye. 11363_ Slug penetrates Wall. 11364_ Penetrated by Slug. [Achievement: I Was Wrong!] Map ----- +----------------------------------------------------+ | ??????????????????# #?????????????????????????? | | ??????????????????# +?????????????????????????? | | ??????????????????# #?????????????????????????? | | ?????????########## #?????????????????????????? | | ?????????# # ########################+## | | ?????????? /# | | ?????????? """ # | | ###?######? """" # ? | | [?# +? """" + ?? | | # #?? """ ?# #????????????######## ## | | "" # #?? ?# #???????????????????# #? | | "" + #??? ??# ##########??????????# #? | | "" # #??? ??# #! #??????????# #? | | # #???#+#??# # * #??????????# #? | | ?# ##### #### # ""#??????????# #? | | ?# # * ""#??????????# #? | | ##??# # G#??????????# #? | | ##### # ""#??????????# #? | | # ""#??????????# ## | | #################p # ????????????# | | #?????#[ # # ??????????????# | | ####### # ###+################# | | # """ p h | | #* """" # ############# | | %== # """" # #???????????? | | % ] """ # @ #?????????? | | ######## ####+###????????# " | | =#??????# #? ?????????# " | | ##########??????# # ???????# " | | = #???????????????+ + ?????# | | # #???????????????# # ##????# | | # ##???????????????# # ""T"" #?????# " | | ### #????????????????# # """"" #?????# " | | ??# #????????????????# # #?????# " | | ??# #????????????????# # #?????# ? | | ??#######????????????????# ###########?????# ?? | | ?????????????????????????# #???????????????#??? | | ?????????????????????????# #??????????????????? | | ?????????????????????????# #??????????????????? | | ?????????????????????????# #??????????????????? | | ?????????????????????????# #??????????????????? | | ?????????????????????????# #??????????????????? | | ?????????????????????????# #??????????????????? | | ?????????????????????????# ???????????????????? | | ?????????????????????????? ???????????????????? | | ?????????????????????????????????????????????????? | | ?????????????????????????????????????????????????? | | ?????????????????????????????????????????????????? | | ?????????????????????????????????????????????????? | | ?????????????????????????????????????????????????? | +----------------------------------------------------+ Best States ------------- Heat Dissipation 73 Coolant Potential 80 Energy Generation 31 Energy Capacity 400 Matter Stores 300 Matter Capacity 300 Sight Range 23 Terrain Scan Density 1010 Jamming Range 14 Armor Coverage 800 Evasion (%) 72 Target Analysis 6 Recoil Reduction 2 Salvage Targeting 4 Defensive Hacking 26 Item Schematics ----------------- Nuclear Pulse Array | -7/Recycling | Hacked Assault Drone Bay | -5/Zhirov | Free Exp. Heat Sink | -5/Zhirov | Free Exp. Optical Array | -5/Zhirov | Free Imp. Arc Thrower | -5/Zhirov | Free Robot Schematics ------------------ None Fabricated ------------ Nothing Alien Tech Used ----------------- Integrated Reactor Achievements -------------- I Was Wrong! Challenges ------------ None Game ------ Seed LightChainLog Manual? 0 Play Time 01:35:24 Cumulative 185.3 hours Start 2025.03.08 @ 07:32:04 End 2025.03.08 @ 09:13:24 Sessions 1 Manual Loads 0 Difficulty Rogue Special Mode None Game No. 129 Rogue 129 Adventurer 0 Explorer 0 Win Type - Total 10 Types 10/0/0/0/0/0/0/0/0 Lore% 76 Gallery% 68 Achievement% 53 Wizard Run 0 Options --------- Layout 2 ASCII 0 Keyboard 1 Movement Arrows Keybinds 0 Fullscreen 1 Font 24/Proggy Map View 50x44 Zoom Use 0% Tactical HUD 1 Map Filters NONE Filters NONE Steam 1 RUN: ba4d7f79-1bb2-4395-9ce5-59b9291ef4fa